[Event "Titled Tuesday Blitz November 30 2021"]
[White "Rasulov, Vugar"]
[Black "Vovk, Orest"]
[WhiteFideId "13402390"]
[BlackFideId "14113490"]
[WhiteElo "2560"]
[BlackElo "2203"]
[Result "1-0"]
[Round "02"]
[TimeControl "180+1"]
[Date "2021.11.30"]
[WhiteClock "0:01:18"]
[BlackClock "0:00:02"]

1. e4 {[%clk 0:03:00]}  Nc6 {[%clk 0:02:59]} 2. Nf3 {[%clk 0:03:01]}  d5 {[%clk 0:02:59]} 3. exd5 {[%clk 0:02:59]}  Qxd5 {[%clk 0:03:00]} 4. Nc3 {[%clk 0:02:59]}  Qa5 {[%clk 0:03:00]} 5. Bb5 {[%clk 0:02:58]}  Bd7 {[%clk 0:03:00]} 6. O-O {[%clk 0:02:59]}  a6 {[%clk 0:03:00]} 7. Bc4 {[%clk 0:02:56]}  Nf6 {[%clk 0:02:53]} 8. h3 {[%clk 0:02:56]}  O-O-O {[%clk 0:02:44]} 9. d3 {[%clk 0:02:56]}  e6 {[%clk 0:02:31]} 10. Bd2 {[%clk 0:02:52]}  Qh5 {[%clk 0:02:31]} 11. Qe2 {[%clk 0:02:50]}  Bd6 {[%clk 0:02:27]} 12. Ne4 {[%clk 0:02:48]}  Nxe4 {[%clk 0:02:23]} 13. dxe4 {[%clk 0:02:49]}  Ne5 {[%clk 0:02:16]} 14. Nxe5 {[%clk 0:02:47]}  Qxe2 {[%clk 0:02:15]} 15. Bxe2 {[%clk 0:02:48]}  Bxe5 {[%clk 0:02:15]} 16. Bc1 {[%clk 0:02:37]}  Bc6 {[%clk 0:02:09]} 17. Bd3 {[%clk 0:02:37]}  Bb5 {[%clk 0:01:58]} 18. Rd1 {[%clk 0:02:32]}  Bxd3 {[%clk 0:01:56]} 19. cxd3 {[%clk 0:02:33]}  Rd7 {[%clk 0:01:53]} 20. Kf1 {[%clk 0:02:31]}  Rhd8 {[%clk 0:01:51]} 21. Ke2 {[%clk 0:02:32]}  c5 {[%clk 0:01:50]} 22. f4 {[%clk 0:02:26]}  Bd4 {[%clk 0:01:45]} 23. Rb1 {[%clk 0:02:27]}  f5 {[%clk 0:01:43]} 24. b4 {[%clk 0:02:20]}  fxe4 {[%clk 0:01:34]} 25. dxe4 {[%clk 0:02:18]}  c4 {[%clk 0:01:34]} 26. b5 {[%clk 0:02:13]}  a5 {[%clk 0:01:32]} 27. b6 {[%clk 0:02:09]}  e5 {[%clk 0:01:21]} 28. Rb5 {[%clk 0:02:07]}  Rd6 {[%clk 0:01:01]} 29. a4 {[%clk 0:01:53]}  Bxb6 {[%clk 0:00:50]} 30. Rxd6 {[%clk 0:01:53]}  Rxd6 {[%clk 0:00:50]} 31. fxe5 {[%clk 0:01:49]}  Rc6 {[%clk 0:00:49]} 32. Bd2 {[%clk 0:01:39]}  c3 {[%clk 0:00:48]} 33. Bxc3 {[%clk 0:01:39]}  Rxc3 {[%clk 0:00:47]} 34. Rxb6 {[%clk 0:01:40]}  Rc4 {[%clk 0:00:46]} 35. Kf3 {[%clk 0:01:38]}  Rxa4 {[%clk 0:00:43]} 36. e6 {[%clk 0:01:38]}  Ra1 {[%clk 0:00:25]} 37. Kf4 {[%clk 0:01:38]}  a4 {[%clk 0:00:19]} 38. e7 {[%clk 0:01:34]}  Kd7 {[%clk 0:00:18]} 39. Rxb7+ {[%clk 0:01:34]}  Ke8 {[%clk 0:00:19]} 40. Ke5 {[%clk 0:01:34]}  Rf1 {[%clk 0:00:17]} 41. Ra7 {[%clk 0:01:32]}  Rf6 {[%clk 0:00:15]} 42. g4 {[%clk 0:01:31]}  a3 {[%clk 0:00:14]} 43. g5 {[%clk 0:01:28]}  Rb6 {[%clk 0:00:11]} 44. Rxa3 {[%clk 0:01:26]}  Rb5+ {[%clk 0:00:09]} 45. Ke6 {[%clk 0:01:23]}  Rb6+ {[%clk 0:00:09]} 46. Kf5 {[%clk 0:01:24]}  Kxe7 {[%clk 0:00:09]} 47. Ra7+ {[%clk 0:01:23]}  Kf8 {[%clk 0:00:09]} 48. h4 {[%clk 0:01:24]}  Rb1 {[%clk 0:00:08]} 49. h5 {[%clk 0:01:24]}  Rf1+ {[%clk 0:00:07]} 50. Ke6 {[%clk 0:01:24]}  Kg8 {[%clk 0:00:04]} 51. e5 {[%clk 0:01:24]}  Rf8 {[%clk 0:00:04]} 52. Kd6 {[%clk 0:01:22]}  Rd8+ {[%clk 0:00:03]} 53. Rd7 {[%clk 0:01:22]}  Ra8 {[%clk 0:00:03]} 54. e6 {[%clk 0:01:22]}  Kf8 {[%clk 0:00:03]} 55. Rf7+ {[%clk 0:01:17]}  Kg8 {[%clk 0:00:03]} 56. Rc7 {[%clk 0:01:18]}  Rd8+ {[%clk 0:00:02]} 57. Ke7 {[%clk 0:01:18]}  Ra8 {[%clk 0:00:02]} 58. Rd7 {[%clk 0:01:18]} 1-0


[Site "https://www.chess.com"]

[Event "Titled Tuesday Blitz November 30 2021"]
[White "Sadhwani, Raunak"]
[Black "Vaishali, Rameshbabu"]
[WhiteFideId "35093487"]
[BlackFideId "5091756"]
[WhiteElo "2517"]
[BlackElo "2313"]
[Result "0-1"]
[Round "02"]
[TimeControl "180+1"]
[Date "2021.11.30"]
[WhiteClock "0:00:02"]
[BlackClock "0:00:09"]

1. c4 {[%clk 0:03:00]}  Nf6 {[%clk 0:02:57]} 2. Nc3 {[%clk 0:02:57]}  c5 {[%clk 0:02:53]} 3. Nf3 {[%clk 0:02:52]}  e6 {[%clk 0:02:51]} 4. e3 {[%clk 0:02:48]}  d5 {[%clk 0:02:50]} 5. d4 {[%clk 0:02:48]}  a6 {[%clk 0:02:48]} 6. cxd5 {[%clk 0:02:37]}  exd5 {[%clk 0:02:49]} 7. g3 {[%clk 0:02:35]}  c4 {[%clk 0:02:39]} 8. Bg2 {[%clk 0:02:31]}  Bb4 {[%clk 0:02:37]} 9. O-O {[%clk 0:02:31]}  O-O {[%clk 0:02:35]} 10. Bd2 {[%clk 0:02:30]}  Nc6 {[%clk 0:02:31]} 11. Ne5 {[%clk 0:02:20]}  Re8 {[%clk 0:02:10]} 12. Nxc6 {[%clk 0:02:14]}  bxc6 {[%clk 0:02:11]} 13. b3 {[%clk 0:02:12]}  Bf5 {[%clk 0:01:58]} 14. bxc4 {[%clk 0:01:55]}  Bd3 {[%clk 0:01:58]} 15. Re1 {[%clk 0:01:55]}  Bxc4 {[%clk 0:01:56]} 16. Qc2 {[%clk 0:01:55]}  Bxc3 {[%clk 0:01:41]} 17. Bxc3 {[%clk 0:01:54]}  h5 {[%clk 0:01:39]} 18. f3 {[%clk 0:01:47]}  h4 {[%clk 0:01:29]} 19. g4 {[%clk 0:01:48]}  Nh7 {[%clk 0:01:23]} 20. h3 {[%clk 0:01:48]}  Ng5 {[%clk 0:01:20]} 21. Qf2 {[%clk 0:01:41]}  Qf6 {[%clk 0:01:16]} 22. e4 {[%clk 0:01:36]}  Ne6 {[%clk 0:01:09]} 23. e5 {[%clk 0:01:32]}  Qf4 {[%clk 0:01:01]} 24. Rad1 {[%clk 0:01:31]}  g5 {[%clk 0:00:56]} 25. Bb2 {[%clk 0:01:27]}  Rab8 {[%clk 0:00:53]} 26. Bc1 {[%clk 0:01:23]}  Qg3 {[%clk 0:00:53]} 27. Qxg3 {[%clk 0:01:14]}  hxg3 {[%clk 0:00:54]} 28. h4 {[%clk 0:01:14]}  gxh4 {[%clk 0:00:50]} 29. f4 {[%clk 0:01:15]}  Rb1 {[%clk 0:00:39]} 30. f5 {[%clk 0:00:58]}  Rxc1 {[%clk 0:00:37]} 31. Rxc1 {[%clk 0:00:59]}  Nxd4 {[%clk 0:00:37]} 32. Kh1 {[%clk 0:00:35]}  Be2 {[%clk 0:00:29]} 33. g5 {[%clk 0:00:22]}  Rxe5 {[%clk 0:00:25]} 34. Bh3 {[%clk 0:00:09]}  Bf3+ {[%clk 0:00:24]} 35. Kg1 {[%clk 0:00:09]}  Re2 {[%clk 0:00:15]} 36. Rb1 {[%clk 0:00:02]}  Rh2 {[%clk 0:00:13]} 37. Re8+ {[%clk 0:00:02]}  Kh7 {[%clk 0:00:11]} 38. g6+ {[%clk 0:00:02]}  Kh6 {[%clk 0:00:09]} 39. Rh8+ {[%clk 0:00:02]}  Kg5 {[%clk 0:00:09]} 40. Bg2 {[%clk 0:00:01]}  Rxg2+ {[%clk 0:00:09]} 41. Kf1 {[%clk 0:00:02]}  Rf2+ {[%clk 0:00:09]} 42. Ke1 {[%clk 0:00:02]}  Nc2# {[%clk 0:00:09]} 0-1


[Site "https://www.chess.com"]

[Event "Titled Tuesday Blitz November 30 2021"]
[White "Saraci, Nderim"]
[Black "Adewumi, Tanitoluwa"]
[WhiteFideId "6351921"]
[BlackFideId "30966396"]
[WhiteElo "2480"]
[BlackElo "2564"]
[Result "1-0"]
[Round "02"]
[TimeControl "180+1"]
[Date "2021.11.30"]
[WhiteClock "0:00:05"]
[BlackClock "0:00:05"]

1. d4 {[%clk 0:03:00]}  Nf6 {[%clk 0:02:59]} 2. c4 {[%clk 0:03:00]}  g6 {[%clk 0:02:57]} 3. Nf3 {[%clk 0:03:00]}  Bg7 {[%clk 0:02:56]} 4. g3 {[%clk 0:03:00]}  O-O {[%clk 0:02:57]} 5. Bg2 {[%clk 0:03:01]}  d6 {[%clk 0:02:57]} 6. O-O {[%clk 0:03:01]}  Nc6 {[%clk 0:02:58]} 7. Nc3 {[%clk 0:03:02]}  e5 {[%clk 0:02:55]} 8. dxe5 {[%clk 0:03:00]}  Nxe5 {[%clk 0:02:51]} 9. Nxe5 {[%clk 0:02:53]}  dxe5 {[%clk 0:02:52]} 10. Bg5 {[%clk 0:02:53]}  Qe8 {[%clk 0:02:24]} 11. Nd5 {[%clk 0:02:43]}  Nxd5 {[%clk 0:02:17]} 12. cxd5 {[%clk 0:02:43]}  e4 {[%clk 0:02:11]} 13. Rc1 {[%clk 0:02:23]}  Be5 {[%clk 0:01:56]} 14. Bh6 {[%clk 0:02:20]}  Bxb2 {[%clk 0:01:38]} 15. Rxc7 {[%clk 0:02:17]}  Qe5 {[%clk 0:01:33]} 16. Qc2 {[%clk 0:02:01]}  Rd8 {[%clk 0:01:24]} 17. Bf4 {[%clk 0:01:58]}  Qf6 {[%clk 0:01:17]} 18. Bxe4 {[%clk 0:01:58]}  Be5 {[%clk 0:01:15]} 19. Bxe5 {[%clk 0:01:54]}  Qxe5 {[%clk 0:01:16]} 20. Bg2 {[%clk 0:01:48]}  Bg4 {[%clk 0:01:05]} 21. e4 {[%clk 0:01:32]}  Rac8 {[%clk 0:00:59]} 22. Rxc8 {[%clk 0:01:22]}  Rxc8 {[%clk 0:01:00]} 23. Qd2 {[%clk 0:01:21]}  b5 {[%clk 0:00:47]} 24. h3 {[%clk 0:01:20]}  Bd7 {[%clk 0:00:45]} 25. f4 {[%clk 0:01:15]}  Qc3 {[%clk 0:00:44]} 26. Qxc3 {[%clk 0:01:11]}  Rxc3 {[%clk 0:00:45]} 27. Rf3 {[%clk 0:01:07]}  Rc1+ {[%clk 0:00:42]} 28. Rf1 {[%clk 0:00:51]}  Rc3 {[%clk 0:00:40]} 29. e5 {[%clk 0:00:44]}  Rxg3 {[%clk 0:00:38]} 30. Kh2 {[%clk 0:00:44]}  Rd3 {[%clk 0:00:35]} 31. Rf2 {[%clk 0:00:43]}  a5 {[%clk 0:00:31]} 32. Re2 {[%clk 0:00:41]}  Kf8 {[%clk 0:00:28]} 33. d6 {[%clk 0:00:39]}  b4 {[%clk 0:00:25]} 34. Be4 {[%clk 0:00:38]}  Rd4 {[%clk 0:00:24]} 35. Kg3 {[%clk 0:00:36]}  Bb5 {[%clk 0:00:23]} 36. Re3 {[%clk 0:00:33]}  Rd2 {[%clk 0:00:23]} 37. a3 {[%clk 0:00:32]}  Ke8 {[%clk 0:00:21]} 38. axb4 {[%clk 0:00:31]}  axb4 {[%clk 0:00:22]} 39. Rb3 {[%clk 0:00:31]}  Rd4 {[%clk 0:00:22]} 40. Bf3 {[%clk 0:00:30]}  Ba4 {[%clk 0:00:22]} 41. Rb1 {[%clk 0:00:28]}  b3 {[%clk 0:00:22]} 42. Rc1 {[%clk 0:00:27]}  b2 {[%clk 0:00:21]} 43. Rc8+ {[%clk 0:00:27]}  Kd7 {[%clk 0:00:19]} 44. Rb8 {[%clk 0:00:12]}  Rd3 {[%clk 0:00:15]} 45. Rxb2 {[%clk 0:00:11]}  Bc6 {[%clk 0:00:15]} 46. Rf2 {[%clk 0:00:11]}  f6 {[%clk 0:00:15]} 47. Kg2 {[%clk 0:00:11]}  Rxf3 {[%clk 0:00:15]} 48. Rxf3 {[%clk 0:00:11]}  Ke6 {[%clk 0:00:14]} 49. Kg3 {[%clk 0:00:12]}  Bxf3 {[%clk 0:00:14]} 50. Kxf3 {[%clk 0:00:12]}  g5 {[%clk 0:00:14]} 51. exf6 {[%clk 0:00:06]}  gxf4 {[%clk 0:00:09]} 52. d7 {[%clk 0:00:06]}  Kxd7 {[%clk 0:00:09]} 53. Kxf4 {[%clk 0:00:07]}  Ke6 {[%clk 0:00:09]} 54. Kg5 {[%clk 0:00:07]}  Kf7 {[%clk 0:00:07]} 55. Kf5 {[%clk 0:00:08]}  Kf8 {[%clk 0:00:05]} 56. Ke6 {[%clk 0:00:08]}  Ke8 {[%clk 0:00:06]} 57. h4 {[%clk 0:00:09]}  Kf8 {[%clk 0:00:06]} 58. h5 {[%clk 0:00:06]}  Ke8 {[%clk 0:00:07]} 59. f7+ {[%clk 0:00:02]}  Kf8 {[%clk 0:00:07]} 60. Kf6 {[%clk 0:00:03]}  h6 {[%clk 0:00:04]} 61. Kg6 {[%clk 0:00:04]}  Ke7 {[%clk 0:00:04]} 62. Kg7 {[%clk 0:00:05]}  Ke6 {[%clk 0:00:05]} 1-0


[Site "https://www.chess.com"]

[Event "Titled Tuesday Blitz November 30 2021"]
[White "Sawlin, Leonid"]
[Black "Kollars, Dmitrij"]
[WhiteFideId "4689542"]
[BlackFideId "12909572"]
[WhiteElo "2412"]
[BlackElo "2584"]
[Result "1/2-1/2"]
[Round "02"]
[TimeControl "180+1"]
[Date "2021.11.30"]
[WhiteClock "0:01:49"]
[BlackClock "0:00:07"]

1. e4 {[%clk 0:03:00]}  e6 {[%clk 0:02:58]} 2. d4 {[%clk 0:03:00]}  d5 {[%clk 0:02:59]} 3. Nc3 {[%clk 0:03:00]}  Nf6 {[%clk 0:02:58]} 4. e5 {[%clk 0:03:01]}  Nfd7 {[%clk 0:02:59]} 5. f4 {[%clk 0:03:01]}  c5 {[%clk 0:02:59]} 6. Nf3 {[%clk 0:03:02]}  Nc6 {[%clk 0:03:00]} 7. Be3 {[%clk 0:03:02]}  a6 {[%clk 0:03:01]} 8. Qd2 {[%clk 0:03:03]}  b5 {[%clk 0:03:00]} 9. dxc5 {[%clk 0:03:04]}  Bxc5 {[%clk 0:03:00]} 10. Qf2 {[%clk 0:03:04]}  Qb6 {[%clk 0:02:37]} 11. Bxc5 {[%clk 0:03:04]}  Qxc5 {[%clk 0:02:37]} 12. a3 {[%clk 0:03:01]}  Bb7 {[%clk 0:02:31]} 13. Bd3 {[%clk 0:02:56]}  h6 {[%clk 0:02:23]} 14. h4 {[%clk 0:02:54]}  Rc8 {[%clk 0:02:05]} 15. Ne2 {[%clk 0:02:52]}  f6 {[%clk 0:01:55]} 16. exf6 {[%clk 0:02:51]}  Qxf2+ {[%clk 0:01:41]} 17. Kxf2 {[%clk 0:02:52]}  gxf6 {[%clk 0:01:41]} 18. Ned4 {[%clk 0:02:51]}  Nxd4 {[%clk 0:01:29]} 19. Nxd4 {[%clk 0:02:52]}  Nc5 {[%clk 0:01:29]} 20. Rae1 {[%clk 0:02:48]}  Kf7 {[%clk 0:01:27]} 21. Rh3 {[%clk 0:02:44]}  Ne4+ {[%clk 0:01:22]} 22. Bxe4 {[%clk 0:02:30]}  dxe4 {[%clk 0:01:23]} 23. c3 {[%clk 0:02:31]}  Rhg8 {[%clk 0:01:18]} 24. Re2 {[%clk 0:02:23]}  Rg4 {[%clk 0:01:08]} 25. g3 {[%clk 0:02:21]}  Rcg8 {[%clk 0:01:08]} 26. Re3 {[%clk 0:02:21]}  Rd8 {[%clk 0:00:55]} 27. Rh1 {[%clk 0:02:21]}  e5 {[%clk 0:00:48]} 28. fxe5 {[%clk 0:02:19]}  fxe5 {[%clk 0:00:49]} 29. Nb3 {[%clk 0:02:16]}  Ke7 {[%clk 0:00:35]} 30. Rhe1 {[%clk 0:02:15]}  Rf8+ {[%clk 0:00:32]} 31. Kg2 {[%clk 0:02:12]}  Rf3 {[%clk 0:00:31]} 32. Rxf3 {[%clk 0:02:12]}  exf3+ {[%clk 0:00:32]} 33. Kf2 {[%clk 0:02:13]}  Kd6 {[%clk 0:00:27]} 34. Nd2 {[%clk 0:02:14]}  e4 {[%clk 0:00:25]} 35. Rd1 {[%clk 0:02:10]}  Ke5 {[%clk 0:00:22]} 36. Nf1 {[%clk 0:02:10]}  Rg7 {[%clk 0:00:21]} 37. Ne3 {[%clk 0:02:10]}  Bc6 {[%clk 0:00:20]} 38. Rd4 {[%clk 0:02:08]}  Rg8 {[%clk 0:00:19]} 39. Nc2 {[%clk 0:02:05]}  a5 {[%clk 0:00:18]} 40. Ne3 {[%clk 0:02:04]}  Re8 {[%clk 0:00:11]} 41. a4 {[%clk 0:02:04]}  bxa4 {[%clk 0:00:10]} 42. Rc4 {[%clk 0:02:05]}  Kd6 {[%clk 0:00:09]} 43. Nf5+ {[%clk 0:02:03]}  Kd7 {[%clk 0:00:09]} 44. Rd4+ {[%clk 0:02:00]}  Kc7 {[%clk 0:00:09]} 45. Rc4 {[%clk 0:01:55]}  Kb6 {[%clk 0:00:08]} 46. Ke3 {[%clk 0:01:53]}  Rf8 {[%clk 0:00:08]} 47. Nd4 {[%clk 0:01:52]}  Bb7 {[%clk 0:00:06]} 48. Kf2 {[%clk 0:01:52]}  Re8 {[%clk 0:00:06]} 49. Nc2 {[%clk 0:01:51]}  Re5 {[%clk 0:00:06]} 50. Rxa4 {[%clk 0:01:50]}  Rd5 {[%clk 0:00:05]} 51. Rd4 {[%clk 0:01:50]}  Rb5 {[%clk 0:00:06]} 52. b4 {[%clk 0:01:49]}  a4 {[%clk 0:00:06]} 53. Na3 {[%clk 0:01:49]}  Rf5 {[%clk 0:00:06]} 54. Nc4+ {[%clk 0:01:47]}  Kc7 {[%clk 0:00:06]} 55. Ne3 {[%clk 0:01:47]}  Rf6 {[%clk 0:00:07]} 56. b5 {[%clk 0:01:47]}  Kb6 {[%clk 0:00:05]} 57. Rxa4 {[%clk 0:01:47]}  Kxb5 {[%clk 0:00:06]} 58. Rb4+ {[%clk 0:01:48]}  Ka6 {[%clk 0:00:06]} 59. Ra4+ {[%clk 0:01:48]}  Kb6 {[%clk 0:00:06]} 60. Rb4+ {[%clk 0:01:48]}  Kc7 {[%clk 0:00:07]} 61. Rc4+ {[%clk 0:01:48]}  Kd6 {[%clk 0:00:07]} 62. Rd4+ {[%clk 0:01:48]}  Kc7 {[%clk 0:00:07]} 63. Rc4+ {[%clk 0:01:49]}  Kd6 {[%clk 0:00:07]} 64. Rb4 {[%clk 0:01:49]}  Kc7 {[%clk 0:00:07]} 65. Rc4+ {[%clk 0:01:49]} 1/2-1/2


[Site "https://www.chess.com"]

[Event "Titled Tuesday Blitz November 30 2021"]
[White "Svane, Frederik"]
[Black "Bilych, Olexiy"]
[WhiteFideId "12923044"]
[BlackFideId "14156504"]
[WhiteElo "2459"]
[BlackElo "2195"]
[Result "1-0"]
[Round "02"]
[TimeControl "180+1"]
[Date "2021.11.30"]
[WhiteClock "0:00:14"]
[BlackClock "0:00:03"]

1. c4 {[%clk 0:03:00]}  e5 {[%clk 0:02:57]} 2. e3 {[%clk 0:02:59]}  Nf6 {[%clk 0:02:50]} 3. Nc3 {[%clk 0:02:59]}  d6 {[%clk 0:02:50]} 4. g3 {[%clk 0:02:54]}  g6 {[%clk 0:02:50]} 5. Bg2 {[%clk 0:02:55]}  Bg7 {[%clk 0:02:50]} 6. Nge2 {[%clk 0:02:55]}  O-O {[%clk 0:02:50]} 7. O-O {[%clk 0:02:56]}  c6 {[%clk 0:02:45]} 8. d4 {[%clk 0:02:56]}  Nbd7 {[%clk 0:02:39]} 9. b3 {[%clk 0:02:56]}  Re8 {[%clk 0:02:36]} 10. Ba3 {[%clk 0:02:56]}  Bf8 {[%clk 0:02:33]} 11. Qc2 {[%clk 0:02:53]}  h5 {[%clk 0:02:15]} 12. h3 {[%clk 0:02:46]}  Qe7 {[%clk 0:01:59]} 13. dxe5 {[%clk 0:02:41]}  Qxe5 {[%clk 0:01:56]} 14. Rad1 {[%clk 0:02:39]}  a5 {[%clk 0:01:48]} 15. Na4 {[%clk 0:02:33]}  Nc5 {[%clk 0:01:32]} 16. Bb2 {[%clk 0:02:26]}  Qe7 {[%clk 0:01:23]} 17. Nxc5 {[%clk 0:02:14]}  dxc5 {[%clk 0:01:23]} 18. Qc3 {[%clk 0:02:15]}  Bg7 {[%clk 0:01:18]} 19. e4 {[%clk 0:02:15]}  Rf8 {[%clk 0:00:56]} 20. e5 {[%clk 0:02:00]}  Ne8 {[%clk 0:00:51]} 21. Nf4 {[%clk 0:01:55]}  Nc7 {[%clk 0:00:47]} 22. Rfe1 {[%clk 0:01:48]}  Ne6 {[%clk 0:00:46]} 23. Qf3 {[%clk 0:01:43]}  Ng5 {[%clk 0:00:44]} 24. Qe3 {[%clk 0:01:42]}  a4 {[%clk 0:00:39]} 25. Ba3 {[%clk 0:01:34]}  Ra5 {[%clk 0:00:29]} 26. Qd2 {[%clk 0:01:24]}  Ra7 {[%clk 0:00:27]} 27. Qd6 {[%clk 0:01:23]}  Qxd6 {[%clk 0:00:18]} 28. exd6 {[%clk 0:01:24]}  axb3 {[%clk 0:00:19]} 29. Bxc5 {[%clk 0:01:24]}  Ra5 {[%clk 0:00:13]} 30. Bb4 {[%clk 0:01:18]}  Ra4 {[%clk 0:00:13]} 31. a3 {[%clk 0:01:18]}  Bd7 {[%clk 0:00:12]} 32. h4 {[%clk 0:01:10]}  Ne6 {[%clk 0:00:11]} 33. Nxe6 {[%clk 0:01:10]}  fxe6 {[%clk 0:00:12]} 34. c5 {[%clk 0:00:58]}  Raa8 {[%clk 0:00:10]} 35. Bf1 {[%clk 0:00:56]}  b2 {[%clk 0:00:09]} 36. Bc4 {[%clk 0:00:55]}  Rae8 {[%clk 0:00:10]} 37. Kg2 {[%clk 0:00:54]}  Kh7 {[%clk 0:00:10]} 38. Re2 {[%clk 0:00:52]}  Rf5 {[%clk 0:00:08]} 39. a4 {[%clk 0:00:45]}  Ref8 {[%clk 0:00:04]} 40. Ba3 {[%clk 0:00:39]}  Ra8 {[%clk 0:00:02]} 41. Bxb2 {[%clk 0:00:34]}  Bxb2 {[%clk 0:00:01]} 42. Rxb2 {[%clk 0:00:35]}  Rxa4 {[%clk 0:00:01]} 43. Rxb7 {[%clk 0:00:35]}  Rxc4 {[%clk 0:00:01]} 44. Rxd7+ {[%clk 0:00:35]}  Kh6 {[%clk 0:00:02]} 45. Rd2 {[%clk 0:00:29]}  Rcxc5 {[%clk 0:00:03]} 46. Rd8 {[%clk 0:00:26]}  Rcd5 {[%clk 0:00:03]} 47. Re2 {[%clk 0:00:23]}  e5 {[%clk 0:00:03]} 48. Rc2 {[%clk 0:00:20]}  c5 {[%clk 0:00:03]} 49. Rb2 {[%clk 0:00:21]}  e4 {[%clk 0:00:03]} 50. Rb7 {[%clk 0:00:18]}  g5 {[%clk 0:00:03]} 51. Re8 {[%clk 0:00:14]}  Rd2 {[%clk 0:00:02]} 52. Re6+ {[%clk 0:00:14]}  Rf6 {[%clk 0:00:03]} 53. Rxf6# {[%clk 0:00:14]} 1-0


[Site "https://www.chess.com"]

[Event "Titled Tuesday Blitz November 30 2021"]
[White "Tabatabaei, M. Amin"]
[Black "Horobetz, Graham"]
[WhiteFideId "12521213"]
[BlackFideId "2047322"]
[WhiteElo "2555"]
[BlackElo "2607"]
[Result "1-0"]
[Round "02"]
[TimeControl "180+1"]
[Date "2021.11.30"]
[WhiteClock "0:01:21"]
[BlackClock "0:00:07"]

1. c4 {[%clk 0:03:00]}  c5 {[%clk 0:02:59]} 2. g3 {[%clk 0:03:00]}  g6 {[%clk 0:02:59]} 3. Bg2 {[%clk 0:03:01]}  Bg7 {[%clk 0:02:59]} 4. Nc3 {[%clk 0:03:01]}  Nc6 {[%clk 0:03:00]} 5. a3 {[%clk 0:03:02]}  e5 {[%clk 0:03:00]} 6. Rb1 {[%clk 0:03:02]}  a5 {[%clk 0:03:00]} 7. e3 {[%clk 0:03:00]}  Nge7 {[%clk 0:03:00]} 8. Nge2 {[%clk 0:03:01]}  d6 {[%clk 0:03:01]} 9. O-O {[%clk 0:03:00]}  Be6 {[%clk 0:03:01]} 10. Nd5 {[%clk 0:03:01]}  O-O {[%clk 0:03:00]} 11. d3 {[%clk 0:02:59]}  Rb8 {[%clk 0:02:59]} 12. Nec3 {[%clk 0:02:58]}  Qd7 {[%clk 0:02:58]} 13. b4 {[%clk 0:02:54]}  axb4 {[%clk 0:02:52]} 14. axb4 {[%clk 0:02:55]}  Nxb4 {[%clk 0:02:52]} 15. Nxb4 {[%clk 0:02:56]}  cxb4 {[%clk 0:02:53]} 16. Rxb4 {[%clk 0:02:56]}  d5 {[%clk 0:02:52]} 17. Ba3 {[%clk 0:02:47]}  dxc4 {[%clk 0:02:40]} 18. dxc4 {[%clk 0:02:48]}  Rfd8 {[%clk 0:02:27]} 19. Qb1 {[%clk 0:02:39]}  Nc6 {[%clk 0:02:09]} 20. Rd1 {[%clk 0:02:39]}  Qc7 {[%clk 0:01:27]} 21. Rxd8+ {[%clk 0:02:32]}  Nxd8 {[%clk 0:01:25]} 22. Nd5 {[%clk 0:02:25]}  Qa5 {[%clk 0:01:07]} 23. Rb3 {[%clk 0:02:15]}  h5 {[%clk 0:00:43]} 24. Bd6 {[%clk 0:02:11]}  Ra8 {[%clk 0:00:43]} 25. Ra3 {[%clk 0:01:41]}  Qxa3 {[%clk 0:00:43]} 26. Bxa3 {[%clk 0:01:42]}  Rxa3 {[%clk 0:00:43]} 27. h3 {[%clk 0:01:38]}  h4 {[%clk 0:00:28]} 28. Qb6 {[%clk 0:01:35]}  Nc6 {[%clk 0:00:17]} 29. Qxb7 {[%clk 0:01:36]}  Na5 {[%clk 0:00:18]} 30. Qb8+ {[%clk 0:01:26]}  Kh7 {[%clk 0:00:17]} 31. g4 {[%clk 0:01:20]}  Nxc4 {[%clk 0:00:17]} 32. g5 {[%clk 0:01:21]}  Nd2 {[%clk 0:00:16]} 33. Nf6+ {[%clk 0:01:21]}  Bxf6 {[%clk 0:00:16]} 34. gxf6 {[%clk 0:01:22]}  Ra1+ {[%clk 0:00:16]} 35. Kh2 {[%clk 0:01:22]}  Nf1+ {[%clk 0:00:16]} 36. Bxf1 {[%clk 0:01:23]}  Rxf1 {[%clk 0:00:16]} 37. Kg2 {[%clk 0:01:20]}  Bxh3+ {[%clk 0:00:07]} 38. Kxh3 {[%clk 0:01:21]}  Rxf2 {[%clk 0:00:07]} 39. Qxe5 {[%clk 0:01:21]}  Rf5 {[%clk 0:00:08]} 40. Qe7 {[%clk 0:01:21]}  Kg8 {[%clk 0:00:07]} 41. Qe8+ {[%clk 0:01:21]} 1-0


[Site "https://www.chess.com"]

[Event "Titled Tuesday Blitz November 30 2021"]
[White "Terry, Renato"]
[Black "Druska, Juraj"]
[WhiteFideId "3803457"]
[BlackFideId "14915650"]
[WhiteElo "2577"]
[BlackElo "2369"]
[Result "1-0"]
[Round "02"]
[TimeControl "180+1"]
[Date "2021.11.30"]
[WhiteClock "0:00:26"]
[BlackClock "0:00:09"]

1. e4 {[%clk 0:03:00]}  d5 {[%clk 0:02:59]} 2. exd5 {[%clk 0:03:00]}  Qxd5 {[%clk 0:03:00]} 3. Nc3 {[%clk 0:03:01]}  Qd8 {[%clk 0:02:59]} 4. Bc4 {[%clk 0:03:00]}  g6 {[%clk 0:02:54]} 5. Nf3 {[%clk 0:02:59]}  Bg7 {[%clk 0:02:54]} 6. d4 {[%clk 0:03:00]}  Nf6 {[%clk 0:02:52]} 7. Bf4 {[%clk 0:02:57]}  O-O {[%clk 0:02:46]} 8. Qd2 {[%clk 0:02:57]}  Nbd7 {[%clk 0:02:37]} 9. O-O {[%clk 0:02:49]}  Nb6 {[%clk 0:02:37]} 10. Bb3 {[%clk 0:02:50]}  a5 {[%clk 0:02:30]} 11. a3 {[%clk 0:02:48]}  a4 {[%clk 0:02:21]} 12. Ba2 {[%clk 0:02:48]}  Nfd5 {[%clk 0:02:18]} 13. Nxd5 {[%clk 0:02:45]}  Nxd5 {[%clk 0:02:19]} 14. Be5 {[%clk 0:02:43]}  c6 {[%clk 0:02:08]} 15. Rfe1 {[%clk 0:02:41]}  Bg4 {[%clk 0:01:50]} 16. Bxg7 {[%clk 0:02:41]}  Kxg7 {[%clk 0:01:51]} 17. Ne5 {[%clk 0:02:41]}  Be6 {[%clk 0:01:48]} 18. Re2 {[%clk 0:02:21]}  Nc7 {[%clk 0:01:42]} 19. c4 {[%clk 0:02:06]}  Qd6 {[%clk 0:01:12]} 20. Qc3 {[%clk 0:02:05]}  f6 {[%clk 0:00:55]} 21. Nd3 {[%clk 0:01:53]}  Bf7 {[%clk 0:00:49]} 22. Rae1 {[%clk 0:01:44]}  Rfe8 {[%clk 0:00:41]} 23. Nc5 {[%clk 0:01:18]}  b6 {[%clk 0:00:30]} 24. Ne4 {[%clk 0:01:18]}  Qd7 {[%clk 0:00:26]} 25. Rd2 {[%clk 0:01:04]}  Red8 {[%clk 0:00:24]} 26. h3 {[%clk 0:01:04]}  Ne6 {[%clk 0:00:24]} 27. d5 {[%clk 0:01:01]}  cxd5 {[%clk 0:00:22]} 28. cxd5 {[%clk 0:01:02]}  Nf8 {[%clk 0:00:15]} 29. d6 {[%clk 0:00:33]}  Bxa2 {[%clk 0:00:12]} 30. Nxf6 {[%clk 0:00:32]}  e5 {[%clk 0:00:09]} 31. Nxd7 {[%clk 0:00:31]}  Nxd7 {[%clk 0:00:09]} 32. Rxe5 {[%clk 0:00:26]}  Nxe5 {[%clk 0:00:08]} 33. Qxe5+ {[%clk 0:00:27]}  Kg8 {[%clk 0:00:09]} 34. d7 {[%clk 0:00:26]}  Bf7 {[%clk 0:00:09]} 35. Qe7 {[%clk 0:00:26]}  Rf8 {[%clk 0:00:09]} 36. d8=Q {[%clk 0:00:26]} 1-0


[Site "https://www.chess.com"]